Cogmind - Beta 14 @@@ ROGUE MODE // 2024.08.11 @ 03:31:05 Player: Hiredgoonthug Result: Destroyed by exploding Fusion Modulator Performance ------------- Evolutions (2) 1000 Regions Visited (5) 1000 Robots Destroyed (85) 425 Value Destroyed (2255) 2255 Prototype IDs (7) 140 Alien Tech Used (0) 0 Bonus (523) 523 TOTAL SCORE: 5343 Bonus ------- High Alert Combat Kills 523 Cogmind --------- Core Integrity 0/550 Matter 300/300 Energy 100/100 System Corruption 0% Temperature Cool (12) Movement Rolling (105) Ox1 Location -8/Materials Parts ------- > --- POWER (1) -------- (None) > --- PROPULSION (4) --- Advanced Treads Advanced Treads Armored Wheel > --- UTILITY (4) ------ Large Storage Unit Transmission Jammer > --- WEAPON (2) ------- Particle Gun > --- INVENTORY (15) --- Large Matter Pod (150) Improved Terrain Scanner Terrain Scan Processor Hacking Suite Hacking Suite Hacking Suite Hacking Suite High-powered Tractor Beam Peak State ------------ > --- POWER ------------ Cooled Ion Engine > --- PROPULSION ------- Advanced Treads Advanced Treads Advanced Treads Advanced Treads > --- UTILITY ---------- Large Storage Unit Transmission Jammer Hardened Light Armor Plating Reflective Plating > --- WEAPON ----------- Advanced Beam Rifle Advanced Beam Rifle > --- INVENTORY -------- Light Deuterium Engine Advanced Treads Advanced Treads Armored Wheel Large Matter Pod Improved Terrain Scanner Terrain Scan Processor Hacking Suite Hacking Suite Hacking Suite Hacking Suite High-powered Tractor Beam Advanced Beam Rifle Rocket Launcher Heavy Flail [Rating: 37] Favorites ----------- Power Cooled Ion Engine Engine Cooled Ion Engine Power Core Light Nuclear Core Propulsion Light Treads Treads Light Treads Leg Aluminum Leg Wheel Wheel Flight Unit Improved Flight Unit Utility Large Storage Unit Device Transmission Jammer Storage Large Storage Unit Processor Transport Network Coupler Protection Reflective Plating Weapon Advanced Beam Rifle Energy Gun Advanced Beam Rifle Ballistic Gun Heavy Assault Rifle Ballistic Cannon Mini Assault Cannon Launcher Rocket Launcher Impact Weapon Heavy Flail Build | -11 -10 -10 -10 -9 -8 ------- Run | Yrd Mat Min Exi Min Mat Slots Evolved 4 | . . . . . 4 Power . | . . . . . . Propulsion 2 | . . . . . 2 Utility 2 | . . . . . 2 Weapon . | . . . . . . Parts Attached 89 | 7 9 8 . . 65 Power 12 | 2 2 1 . . 7 Engine 10 | 2 1 1 . . 6 Core 2 | . 1 . . . 1 Reactor . | . . . . . . Propulsion 27 | 2 1 3 . . 21 Treads 20 | . . 2 . . 18 Leg 3 | 2 1 . . . . Wheel 3 | . . 1 . . 2 Hover . | . . . . . . Flight 1 | . . . . . 1 Utility 17 | 1 1 1 . . 14 Device 9 | . . . . . 9 Storage 3 | 1 . 1 . . 1 Processor 2 | . 1 . . . 1 Hackware . | . . . . . . Protection 3 | . . . . . 3 Artifact . | . . . . . . Weapon 33 | 2 5 3 . . 23 Energy Gun 17 | 2 5 2 . . 8 Energy Cannon . | . . . . . . Ballistic Gun 7 | . . 1 . . 6 Ballistic Cannon 4 | . . . . . 4 Launcher 4 | . . . . . 4 Special Weapon . | . . . . . . Impact Weapon 1 | . . . . . 1 Slashing Weapon . | . . . . . . Piercing Weapon . | . . . . . . Special Melee Weapon . | . . . . . . Unidentified Prototypes 7 | . 1 . . . 6 Parts Lost 24 | . 1 1 . . 22 Power 3 | . . . . . 3 Propulsion 9 | . . 1 . . 8 Utility 7 | . . . . . 7 Weapon 5 | . 1 . . . 4 Highest Loss Streak 11 | . 1 1 . . 11 To Critical Strikes . | . . . . . . Average Slot Usage (%) 93 | . 98 92 100 100 90 Engine 10 | . 13 14 14 14 8 Treads 21 | . . 8 28 28 30 Leg 5 | . 28 6 . . . Wheel 1 | . . 6 . . . Device 6 | . . . . . 10 Storage 11 | . 14 14 14 14 9 Processor 9 | . 12 14 14 14 7 Protection 3 | . . . . . 5 Energy Gun 14 | . 27 23 14 14 9 Ballistic Gun 4 | . . 4 14 14 3 Ballistic Cannon 2 | . . . . . 4 Peak Build Rating 37 | 6 10 11 10 10 37 Average Rating 19 | 5 9 9 10 10 27 On Entrance 7 | . 6 10 10 10 10 Naked Turns . | . . . . . . Heaviest Build 42 | 14 16 32 32 32 42 Greatest Support 88 | 20 20 40 40 40 88 Greatest Overweight (x) 3 | 1 1 1 . . 3 Average Overweight (x) . | . . . . . . Largest Inventory Capacity 15 | 8 8 15 15 15 15 Average Capacity 12 | 7 8 9 15 15 15 Most Carried 15 | 6 8 8 8 8 15 Average Carried 10 | 3 7 7 8 8 12 Final Capacity 15 | 8 8 15 15 15 15 Final Carried 8 | 6 8 8 8 8 8 Class Distribution -------------------- 61% | Mutant 21% | Scavenger-Mutant 16% | Scavenger-Skirmisher Dominant Class ---------------- Mutant | -10/Materials Mutant | -10/Mines Scavenger-Mutant | -10/Exiles Scavenger-Mutant | -9/Mines Mutant | -8/Materials Resources | -11 -10 -10 -10 -9 -8 ----------- Run | Yrd Mat Min Exi Min Mat Matter Collected 2019 | 270 188 127 . . 1434 Remotely 102 | . . . . . 102 Salvage Created 2774 | 67 395 177 . . 2135 Parts 166 | 2 21 18 . . 125 Haulers Intercepted 5 | . 2 . . . 3 Recyclers Shooed 5 | . 3 1 . . 1 Parts Field Recycled . | . . . . . . Retrieved Matter . | . . . . . . Parts Self-Destructed . | . . . . . . Prevented . | . . . . . . Kills | -11 -10 -10 -10 -9 -8 ------- Run | Yrd Mat Min Exi Min Mat Combat Hostiles Destroyed 67 | . 7 5 . . 55 Guns 43 | . 5 5 . . 33 Cannons 12 | . . . . . 12 AOE 11 | . 1 . . . 10 Classes Destroyed 12 | 1 5 2 . . 4 Worker 4 | . . . . . 4 Builder 5 | . . . . . 5 Tunneler 1 | . . 1 . . . Hauler 5 | . 2 . . . 3 Recycler 4 | 1 . . . . 3 Operator 3 | . 1 . . . 2 Watcher 3 | . 2 . . . 1 Swarmer 19 | . 3 3 . . 13 Grunt 34 | . 4 . . . 30 Brawler 1 | . . . . . 1 Protector 2 | . . . . . 2 Sentry 11 | . . 2 . . 9 Best Kill Streak 13 | 1 4 3 . . 13 Combat Bots Only 6 | . 4 3 . . 6 Max Kills in Single Turn 5 | 1 2 1 . . 5 Gunslinging 1 | . . . . . 1 Exploded 3 | . 1 . . . 3 Melee . | . . . . . . Uniques/NPCs Destroyed . | . . . . . . Combat | -11 -10 -10 -10 -9 -8 -------- Run | Yrd Mat Min Exi Min Mat Hostile Shots Fired 423 | . 40 30 . . 353 Missed 116 | . 14 8 . . 94 Damage Taken 4784 | 20 287 238 . . 4239 Core 791 | 10 50 109 . . 622 Absorbed by Shields . | . . . . . . Ignored by Resistances 125 | . . . . . 125 Core Remaining (%) 64 | 96 . . . 32 . Volleys Fired 235 | 3 51 13 . . 168 Largest 2 | 2 2 2 . . 2 Hottest 122 | 80 90 100 . . 122 Shots Fired 442 | 6 101 26 . . 309 Gun 346 | 6 101 26 . . 213 Cannon 87 | . . . . . 87 Launcher 9 | . . . . . 9 Special . | . . . . . . Kinetic 156 | . . . . . 156 Thermal 241 | . 71 26 . . 144 Explosive 9 | . . . . . 9 Electromagnetic 36 | 6 30 . . . . Robot Hit Streak 12 | 2 8 12 . . 9 Robot Miss Streak 5 | 2 4 4 . . 5 Penetration Max . | . . . . . . Secondary Targets 7 | . 1 1 . . 5 Max Gunslinging Chain 1 | . 1 1 . . 1 Shots Hit Robots 269 | 3 52 17 . . 197 Core Hits 149 | 2 21 9 . . 117 Critical Kills . | . . . . . . Critical Parts Destroyed . | . . . . . . Critical Strikes 11 | . 1 . . . 10 Burn 6 | . . . . . 6 Blast 4 | . . . . . 4 Corrupt 1 | . 1 . . . . Melee Attacks 1 | . . . . . 1 Impact 1 | . . . . . 1 Slashing . | . . . . . . Piercing . | . . . . . . Sneak Attacks . | . . . . . . Combat Hostiles . | . . . . . . Follow-up Attacks . | . . . . . . Damage Inflicted 6878 | 83 713 196 . . 5886 Guns 3733 | 52 663 196 . . 2822 Cannons 1506 | . . . . . 1506 Explosions 1639 | 31 50 . . . 1558 Melee . | . . . . . . Ramming . | . . . . . . Kinetic 2481 | . . . . . 2481 Thermal 2757 | 31 445 196 . . 2085 Explosive 1320 | . . . . . 1320 Electromagnetic 320 | 52 268 . . . . Impact . | . . . . . . Slashing . | . . . . . . Piercing . | . . . . . . Highest Corruption . | . . . . . . Average Corruption . | . . . . . . Corruption Purged . | . . . . . . Corruption Blocked . | . . . . . . Overload Shots . | . . . . . . Overflow Damage 165 | . . . . . 165 Projectiles 2 | . . . . . 2 Explosions 163 | . . . . . 163 Melee . | . . . . . . Knockbacks 21 | . . . . . 21 Impact . | . . . . . . Kinetic 17 | . . . . . 17 Secondary 4 | . . . . . 4 Self-Inflicted Damage 382 | 21 38 . . . 323 Shots 11 | 1 1 . . . 9 Rammed . | . . . . . . Targets Rammed . | . . . . . . Kicked . | . . . . . . Crushed . | . . . . . . Highest Temperature 450 | 66 280 228 . . 450 Average Temperature 105 | 39 81 93 . . 118 Received Heat Transfer 2025 | . 72 63 . . 1890 Effects 10 | . 1 . . . 9 Energy Bleed 6 | . 1 . . . 5 Damage (major) 4 | . . . . . 4 Siege Activations . | . . . . . . Robots Corrupted 1 | . 1 . . . . Combat Hostiles 1 | . 1 . . . . Parts Fried 1 | . 1 . . . . Impact Corruptions . | . . . . . . Robots Melted . | . . . . . . Combat Hostiles . | . . . . . . Parts Melted 12 | . 1 1 . . 10 Heat Transferred 5581 | 50 962 533 . . 4036 Parts Sabotaged . | . . . . . . Parts Stolen . | . . . . . . Parts Stripped . | . . . . . . Power Chain Reactions 2 | 1 1 . . . . Alert | -11 -10 -10 -10 -9 -8 ------- Run | Yrd Mat Min Exi Min Mat Peak Influence 1145 | 5 231 148 . . 1145 Initial 28 | . 3 28 . . . Average 342 | . 86 56 . . 506 Maximum Alert Level 4 | . 1 . . . 4 Low Security (%) 50 | 100 87 100 . 100 25 Level 1 16 | . 12 . . . 21 Level 2 10 | . . . . . 17 Level 3 18 | . . . . . 28 Level 4 4 | . . . . . 6 Level 5 . | . . . . . . High Security . | . . . . . . Max Security . | . . . . . . Sterilizations 1 | . . . . . 1 Squads Dispatched 9 | . 1 . . . 8 Investigation 3 | . . . . . 3 Extermination . | . . . . . . Reinforcement 4 | . 1 . . . 3 Assault 2 | . . . . . 2 Garrison . | . . . . . . Intercept . | . . . . . . Searches Triggered . | . . . . . . Construction Impeded 1 | . . . . . 1 Haulers Reinforced . | . . . . . . Active Scanning Responses . | . . . . . . Cargo Convoy Interrupts . | . . . . . . Stealth | -11 -10 -10 -10 -9 -8 --------- Run | Yrd Mat Min Exi Min Mat Distress Signals 10 | . 3 . . . 7 Communications Jammed 51 | . . . . . 51 Distress Signals 51 | . . . . . 51 Times Spotted 111 | . 17 5 . . 89 Peak Tracking Total 7 | . 6 3 . . 7 Tactical Retreats 7 | . . . . . 7 Traps | -11 -10 -10 -10 -9 -8 ------- Run | Yrd Mat Min Exi Min Mat Traps Triggered 4 | . 2 . . . 2 Indirectly . | . . . . . . Trap Hack Attempts . | . . . . . . Triggered . | . . . . . . Disarmed . | . . . . . . Reprogrammed . | . . . . . . Reused . | . . . . . . Traps Extracted . | . . . . . . Installed . | . . . . . . Triggered . | . . . . . . Machines | -11 -10 -10 -10 -9 -8 ---------- Run | Yrd Mat Min Exi Min Mat Machines Disabled 7 | . . . . . 7 Max in Single Turn 2 | . . . . . 2 Machines Repaired . | . . . . . . Machines Dismantled . | . . . . . . Machines Sabotaged . | . . . . . . Overloaded Fab Kills . | . . . . . . Hacking | -11 -10 -10 -10 -9 -8 --------- Run | Yrd Mat Min Exi Min Mat Machines Accessed 8 | . . . 1 . 7 Terminals 6 | . . . . . 6 Fabricators . | . . . . . . Repair Stations . | . . . . . . Recycling Units . | . . . . . . Scanalyzers . | . . . . . . Garrison Access 1 | . . . . . 1 Total Hacks 14 | . . . 1 . 13 Successful 3 | . . . 1 . 2 Failed 11 | . . . . . 11 Catastrophic 4 | . . . . . 4 Database Lockouts . | . . . . . . Manual 11 | . . . . . 11 Terminals 11 | . . . . . 11 Fabricators . | . . . . . . Repair Stations . | . . . . . . Recycling Units . | . . . . . . Scanalyzers . | . . . . . . Garrison Access 2 | . . . . . 2 Terminal Hacks 1 | . . . 1 . . Record 1 | . . . 1 . . Fabricator Hacks . | . . . . . . Repair Station Hacks . | . . . . . . Recycling Unit Hacks . | . . . . . . Scanalyzer . | . . . . . . Garrison Access Hacks . | . . . . . . Unauthorized Hacks 2 | . . . . . 2 Terminals 2 | . . . . . 2 Botnet 2 | . . . . . 2 Fabricators . | . . . . . . Repair Stations . | . . . . . . Recycling Units . | . . . . . . Scanalyzers . | . . . . . . Garrison Access . | . . . . . . Data Cores Recovered . | . . . . . . Used . | . . . . . . Hacking Detections 6 | . . . . . 6 Full Trace Events 2 | . . . . . 2 Feedback Events . | . . . . . . Feedback Blocked . | . . . . . . Robot Schematics Acquired . | . . . . . . Robots Built . | . . . . . . Authchips . | . . . . . . Time . | . . . . . . Total Robot Build Rating . | . . . . . . Part Schematics Acquired . | . . . . . . Parts Built . | . . . . . . Authchips . | . . . . . . Time . | . . . . . . Total Part Build Rating . | . . . . . . Parts Repaired . | . . . . . . Time . | . . . . . . Parts Recycled . | . . . . . . Recycled Matter . | . . . . . . Retrieved Matter . | . . . . . . Retrieved Components . | . . . . . . Parts Scanalyzed . | . . . . . . Part Schematics Acquired . | . . . . . . Parts Damaged . | . . . . . . Bothacking | -11 -10 -10 -10 -9 -8 ------------ Run | Yrd Mat Min Exi Min Mat Used RIF Installer . | . . . . . . Robots Hacked . | . . . . . . Non-combat . | . . . . . . Combat . | . . . . . . Robot Hacks Applied . | . . . . . . Relay Couplers Released . | . . . . . . Fabnet Peak Effective % . | . . . . . . Robots Rewired . | . . . . . . Allies Hacked . | . . . . . . Hacks Repelled . | . . . . . . Allies | -11 -10 -10 -10 -9 -8 -------- Run | Yrd Mat Min Exi Min Mat Total Allies . | . . . . . . Largest Group . | . . . . . . Highest-Rated Group . | . . . . . . Highest-Rated Ally . | . . . . . . Total Orders . | . . . . . . Ally Attacks . | . . . . . . Total Damage . | . . . . . . Kills . | . . . . . . Allies Corrupted . | . . . . . . Allies Melted . | . . . . . . Intel | -11 -10 -10 -10 -9 -8 ------- Run | Yrd Mat Min Exi Min Mat Robot Analysis Total . | . . . . . . Derelict Logs Recovered 3 | . . 2 . 1 . Drone Launches . | . . . . . . Drone Recoveries . | . . . . . . Exploration | -11 -10 -10 -10 -9 -8 ------------- Run | Yrd Mat Min Exi Min Mat Turns Passed 4101 | 89 703 541 377 53 2338 Spaces Moved 2202 | 58 424 426 236 34 1024 Core 11 | 11 . . . . . Treads 1220 | . . 92 236 34 858 Legs 567 | 47 424 96 . . . Wheels 404 | . . 238 . . 166 Hover . | . . . . . . Flight . | . . . . . . Fastest Speed 50 | 50 120 95 160 160 120 Average Speed 140 | 111 120 114 160 160 155 Slowest Speed 250 | 120 190 160 160 160 250 Overloaded Moves . | . . . . . . Propulsion Burnouts . | . . . . . . Robots Hopped . | . . . . . . Cave-ins Triggered . | . . . . . . Exploration Rate (%) 52 | 3 61 89 62 13 84 Regions Visited 5 Branch Regions 3 Pre-discovered Areas 4 | . . 3 . 1 . Known Exits Taken . | . . . . . . Unknown Exits Taken 5 | 1 1 1 1 1 . Scrap Searched 3 | . . 3 . . . Spaces Dug 1 | . . . . . 1 Terrain Destroyed 129 | 5 3 . . . 121 Melee 1 | . . . . . 1 Projectile 20 | . . . . . 20 AOE 108 | 5 3 . . . 100 Terrain Rammed . | . . . . . . Walls Destroyed . | . . . . . . Machines Disabled . | . . . . . . Actions | -11 -10 -10 -10 -9 -8 --------- Run | Yrd Mat Min Exi Min Mat Total 2765 | 72 518 453 235 33 1454 Wait 164 | . 12 3 . . 149 Move 2197 | 57 423 425 235 33 1024 Hop . | . . . . . . Pick Up 37 | 5 12 . . . 20 Fast Attach 25 | 6 3 1 . . 15 Attach 11 | . 1 1 . . 9 Detach 3 | . . 1 . . 2 Swap 53 | 1 5 6 . . 41 Drop 39 | . 11 3 . . 25 Fire 235 | 3 51 13 . . 168 Melee 1 | . . . . . 1 Ram . | . . . . . . Kick . | . . . . . . Crush . | . . . . . . Escape Stasis . | . . . . . . Rewire . | . . . . . . Trap . | . . . . . . Miscellaneous . | . . . . . . Route ------- -11/Scrapyard -10/Materials (discovered 3 exits: [*Mat x2] / [*Min]) -10/Mines (discovered 3 exits: [*Mat x2] / *Exi) -10/Exiles -9/Mines -8/Materials (discovered 3 exits: *Fac x3) History --------- Turn | Location | Event 10 | -11/Scrapyard | Discovered new exit (range 15) 90 | -11/Scrapyard | Entered Materials 318 | -10/Materials | Build established: Mutant 339 | -10/Materials | Discovered new exit (range 8) 676 | -10/Materials | Discovered new exit (range 13) 710 | -10/Materials | Discovered new exit (range 15) 793 | -10/Materials | Entered Mines 800 | -10/Mines | Received a Rocket Launcher from a helpful Derelict 821 | -10/Mines | Discovered new exit (range 4) 986 | -10/Mines | Learned location of Recycling (-7) 998 | -10/Mines | Learned location of Zion (-6) 1149 | -10/Mines | Core integrity fell below 50% 1310 | -10/Mines | Discovered new exit (range 6) 1311 | -10/Mines | Learned location of Storage (-7) 1328 | -10/Mines | Deemed a non-threat by the Exiles lab entrance 1328 | -10/Mines | Discovered new exit (range 5) 1334 | -10/Mines | Entered Exiles 1334 | -10/Exiles | Found Exiles lab abandoned 1460 | -10/Exiles | Build established: Scavenger-Mutant 1693 | -10/Exiles | Discovered new exit (range 12) 1711 | -10/Exiles | Entered Mines 1716 | -9/Mines | Met a Derelict bent on vengeance 1734 | -9/Mines | Discovered new exit (range 16) 1764 | -9/Mines | Entered Materials 1764 | -8/Materials | Evolved 4 slots: Propulsion x2, Utility x2 2064 | -8/Materials | Build established: Scavenger-Skirmisher 2757 | -8/Materials | Discovered new exit (range 6) 2764 | -8/Materials | Identified exit to Factory 3031 | -8/Materials | Build established: Mutant 3364 | -8/Materials | First assault squad dispatched 3418 | -8/Materials | Discovered exit to Factory (range 8) 3885 | -8/Materials | Sterilization system engaged 3885 | -8/Materials | Non-combat units ordered to evacuate 3915 | -8/Materials | Core integrity fell below 50% 3981 | -8/Materials | Lost 11 parts (2p4n2u3w) 3983 | -8/Materials | Discovered exit to Factory (range 15) 3985 | -8/Materials | Combat units ordered to evacuate 3998 | -8/Materials | Core integrity fell below 20% 4048 | -8/Materials | Lost 3 parts (1p2u) 4102 | -8/Materials | Destroyed by exploding Fusion Modulator Last Messages --------------- 03953_ G-47 Trooper destroyed. 03960_ Acquired Lgt. Nuclear Core. 03963_ Acquired Imp. Heat Sink. 03966_ Acquired Particle Gun. 03970_ Acquired Adv. Heat Sink. 03973_ Acquired 23 matter. 03974_ Acquired 57 matter. 03983_ EXIT=FOUND: FACTORY 03984_ Knocked back. 03985_ ALERT: All combat units evacuate. 03989_ Adv. Heat Sink destroyed. 03990_ ALERT: Machine network offline. 03995_ ALERT: Performing unscheduled system reset. 04002_ Lgt. Nuclear Core destroyed. 04002_ Acquired 1 matter. 04017_ Imp. Heat Sink destroyed. 04052_ Acquired 32 matter. 04102_ Fusion Modulator malfunctions... 04102_ Fusion Modulator explodes. 04102_ Adv. Beam Rifle destroyed. Map ----- +----------------------------------------------------+ | % %%########??????????????# #??? | | ## % ############+#####??????????######### #??? | | ## ######## [ #??????????# * # #??? | | # #??????# % ""#??????????#= # #??? | | + #??????# T"#??????????# ! # #??? | | # #??????# """ ""#??????????# ! # #??? | | # +??????# """ #??????????# ! / #??? | | # #??????# """ #################### #??? | | # #??????# +=*%!%+ =#?## ##?? | | ?# #??????# # ##### #?# #?? | | ?# #??????########### ##??# ! ### * #?? | | ## +???????????????## #???# + ! #?? | | #????????????????# #???# ### #?? | | #????????????????# ##### ^ !! #?# = #?? | | #????????????????# + ^ !! #?### ###?? | | #????????????????# ##### % ! #???#*#???? | | #??????????????### ###?#####+######### #???? | | #???????????#### #????# #???? | | #???????????# ###### ##########???? | | " #???????????# ## % #????????????? | | " #???????????#??# ### #????????????? | | " #??????????????# #?# #????????????? | | #??????????????###+##### #???????###??? | | #??????????????# ## #????#### #### | | #??????????????# ## #????# ! * # | | #??????????????# @ + #????# != # | | #??????????????# ##### ###### !!*# | | ## #??????????????# #???# # !**# | | ?# #??????????????# #???# # !* # | | ?# #??????????????########???# + # | | ?# #???????????????????????#####+## # # | | ?# #???????????????????????# # # # | | ?#% #???????????????????????# # # # | | ?# % #???????????????????????# """ # # # | | ?# #???????????????????????# "T [# # # | | ?# #???????????????????????# """ # ######### | | ?# #???????????????????????# # #???????? | | ?# #???????????????????????######## #???????? | | ## #??????????????????????????????# #???????? | | #??????????????????????????????# #???????? | | % #??????????????????????????????# ########? | | % #??????????????????????????????# # !#? | | #??????????????????????????????# # #? | | #??????????????????????????????# # #? | | % ##??????????????????????????????# + "T" #? | | % #???????????????????????????????# # """ #? | | #???????????????????????????????# #! #? | | # #?????????????????????????####### ######### | | " #??????????????????? # * # | | #?????????????????????????####### # # | +----------------------------------------------------+ Best States ------------- Heat Dissipation 64 Energy Generation 15 Energy Capacity 280 Matter Stores 300 Matter Capacity 300 Sight Range 16 Robot Scan Range 14 Terrain Scan Range 16 Terrain Scan Density 10 Jamming Range 12 Power Amplification 20 Armor Coverage 300 Resistance: TH 10 Evasion (%) 55 Recoil Reduction 4 Item Schematics ----------------- None Robot Schematics ------------------ None Fabricated ------------ Nothing Alien Tech Used ----------------- None Achievements -------------- Total Silence Challenges ------------ None Game ------ Seed AutogunHardenedSource Manual? 0 Play Time 00:42:55 Cumulative 20.4 hours Start 2024.08.11 @ 02:34:57 End 2024.08.11 @ 03:31:05 Sessions 1 Manual Loads 0 Difficulty Rogue Special Mode None Game No. 25 Rogue 25 Adventurer 0 Explorer 0 Win Type - Total 0 Types 0/0/0/0/0/0/0/0/0 Lore% 13 Gallery% 24 Achievement% 27 Wizard Run 0 Options --------- Layout 0 ASCII 0 Keyboard 0 Movement Mouse Keybinds 0 Fullscreen 2 Font 24/Terminus Map View 76x50 Zoom Use 0% Tactical HUD 1 Map Filters NONE Filters NONE Steam 1 RUN: f6713f49-0aff-42bb-94c6-fe87b1b0457d